[Event "Late-Titled-Tuesday-Blitz-May-07-2024"]
[Site "Chess.com"]
[Date "2024.05.07"]
[Round "2"]
[White "VictorFcQNK"]
[Black "ChessAdvanceUSA"]
[Result "1-0"]
[WhiteElo "2110"]
[BlackElo "2447"]
[TimeControl "180+1"]
[EndTime "14:16:50 PDT"]
[Termination "VictorFcQNK won by resignation"]

1. d4 {[%clk 0:03:00.9]} 1... Nc6 {[%clk 0:02:57.7]} 2. e4 {[%clk 0:02:58.3]}
2... g6 {[%clk 0:02:57.9]} 3. Nf3 {[%clk 0:02:56.9]} 3... Bg7 {[%clk 0:02:58.1]}
4. Be3 {[%clk 0:02:44.6]} 4... d6 {[%clk 0:02:57.6]} 5. h3 {[%clk 0:02:44.1]}
5... e5 {[%clk 0:02:55.7]} 6. d5 {[%clk 0:02:26.9]} 6... Nce7 {[%clk 0:02:55.2]}
7. Nc3 {[%clk 0:02:24.3]} 7... Nf6 {[%clk 0:02:54.3]} 8. Bb5+ {[%clk 0:02:16.6]}
8... c6 {[%clk 0:02:45]} 9. dxc6 {[%clk 0:02:13.9]} 9... bxc6 {[%clk 0:02:45.1]}
10. Ba4 {[%clk 0:02:12.6]} 10... O-O {[%clk 0:02:44.7]} 11. O-O {[%clk
0:02:11.5]} 11... Qa5 {[%clk 0:02:31.6]} 12. Qxd6 {[%clk 0:02:02.3]} 12... Re8
{[%clk 0:02:02.3]} 13. Qxe5 {[%clk 0:01:30.9]} 13... Qxe5 {[%clk 0:01:55]} 14.
Nxe5 {[%clk 0:01:30.9]} 14... Nxe4 {[%clk 0:01:43]} 15. Nxc6 {[%clk 0:01:13.4]}
15... Nxc3 {[%clk 0:01:42.6]} 16. bxc3 {[%clk 0:01:09.6]} 16... Bxc3 {[%clk
0:01:43.5]} 17. Rad1 {[%clk 0:00:58.3]} 17... Ba6 {[%clk 0:01:39]} 18. Bc5
{[%clk 0:00:29.8]} 18... Bxf1 {[%clk 0:01:24.3]} 19. Nxe7+ {[%clk 0:00:16.2]}
19... Rxe7 {[%clk 0:01:21.3]} 20. Bxe7 {[%clk 0:00:16]} 20... Be2 {[%clk
0:01:18.1]} 21. Rd7 {[%clk 0:00:14.6]} 21... Kg7 {[%clk 0:01:03.6]} 22. Bc5
{[%clk 0:00:14.5]} 22... Rc8 {[%clk 0:00:57.6]} 23. Bxa7 {[%clk 0:00:13.7]}
23... Ra8 {[%clk 0:00:53.1]} 24. Bb3 {[%clk 0:00:13.1]} 1-0

[Event "Late-Titled-Tuesday-Blitz-May-07-2024"]
[Site "Chess.com"]
[Date "2024.05.07"]
[Round "2"]
[White "Abund"]
[Black "Supelyel"]
[Result "1-0"]
[WhiteElo "2751"]
[BlackElo "2403"]
[TimeControl "180+1"]
[EndTime "14:16:53 PDT"]
[Termination "Abund won on time"]

1. e4 {[%clk 0:03:00.9]} 1... d6 {[%clk 0:02:55.9]} 2. d4 {[%clk 0:03:00.7]}
2... Nf6 {[%clk 0:02:52.6]} 3. Nc3 {[%clk 0:03:01]} 3... e5 {[%clk 0:02:52.8]}
4. Nf3 {[%clk 0:02:58.3]} 4... Nbd7 {[%clk 0:02:52.6]} 5. Rg1 {[%clk 0:02:56.3]}
5... c6 {[%clk 0:02:44.6]} 6. g4 {[%clk 0:02:55.7]} 6... h6 {[%clk 0:02:44.6]}
7. h4 {[%clk 0:02:55.6]} 7... exd4 {[%clk 0:02:43.2]} 8. Nxd4 {[%clk 0:02:54.8]}
8... Nc5 {[%clk 0:02:43.3]} 9. Qe2 {[%clk 0:02:39.1]} 9... Be7 {[%clk
0:02:16.5]} 10. Bf4 {[%clk 0:02:09.1]} 10... Qb6 {[%clk 0:02:02.3]} 11. O-O-O
{[%clk 0:02:06.6]} 11... Bd7 {[%clk 0:01:53.2]} 12. Nf5 {[%clk 0:01:41.3]} 12...
Bxf5 {[%clk 0:01:22.3]} 13. exf5 {[%clk 0:01:42.2]} 13... d5 {[%clk 0:00:41.3]}
14. Bg2 {[%clk 0:01:08.4]} 14... Kd7 {[%clk 0:00:12.6]} 15. g5 {[%clk
0:01:01.1]} 15... hxg5 {[%clk 0:00:12.3]} 16. hxg5 {[%clk 0:01:01.8]} 16... Nh5
{[%clk 0:00:13.2]} 17. Nxd5 {[%clk 0:00:46.4]} 17... cxd5 {[%clk 0:00:12.7]} 18.
Rxd5+ {[%clk 0:00:47.2]} 18... Ke8 {[%clk 0:00:10.8]} 19. Bd6 {[%clk 0:00:43.4]}
19... Kf8 {[%clk 0:00:05.8]} 20. Qxe7+ {[%clk 0:00:40]} 20... Kg8 {[%clk
0:00:05.5]} 21. g6 {[%clk 0:00:29.3]} 1-0

[Event "Late-Titled-Tuesday-Blitz-May-07-2024"]
[Site "Chess.com"]
[Date "2024.05.07"]
[Round "2"]
[White "Ajedrez_con_German"]
[Black "HanSchut"]
[Result "0-1"]
[WhiteElo "2596"]
[BlackElo "2404"]
[TimeControl "180+1"]
[EndTime "14:16:59 PDT"]
[Termination "HanSchut won by resignation"]

1. Nf3 {[%clk 0:02:51.5]} 1... Nf6 {[%clk 0:02:59.4]} 2. e3 {[%clk 0:02:52.4]}
2... g6 {[%clk 0:02:59.8]} 3. d4 {[%clk 0:02:53.3]} 3... Bg7 {[%clk 0:02:58]} 4.
Be2 {[%clk 0:02:54.2]} 4... O-O {[%clk 0:02:57.9]} 5. b3 {[%clk 0:02:55.1]} 5...
d5 {[%clk 0:02:58.3]} 6. Bb2 {[%clk 0:02:56]} 6... c5 {[%clk 0:02:58.9]} 7. O-O
{[%clk 0:02:55.8]} 7... cxd4 {[%clk 0:02:59.3]} 8. Nxd4 {[%clk 0:02:56.1]} 8...
Nc6 {[%clk 0:02:59.9]} 9. c4 {[%clk 0:02:56.2]} 9... Nxd4 {[%clk 0:02:56.7]} 10.
Qxd4 {[%clk 0:02:53.4]} 10... dxc4 {[%clk 0:02:49.9]} 11. Qxc4 {[%clk
0:02:40.4]} 11... Be6 {[%clk 0:02:42.4]} 12. Qh4 {[%clk 0:02:33.1]} 12... Rc8
{[%clk 0:02:29.6]} 13. Nc3 {[%clk 0:02:30.7]} 13... Qd2 {[%clk 0:02:20]} 14.
Rab1 {[%clk 0:01:54.9]} 14... Rxc3 {[%clk 0:02:16.7]} 15. Bxc3 {[%clk
0:01:55.1]} 15... Qxc3 {[%clk 0:02:13.6]} 16. Bf3 {[%clk 0:01:53.8]} 16... b6
{[%clk 0:02:04.2]} 17. Qa4 {[%clk 0:01:52]} 17... Qc7 {[%clk 0:01:46]} 18. Rbc1
{[%clk 0:01:49.7]} 18... Qb8 {[%clk 0:01:46.4]} 19. Rfd1 {[%clk 0:01:48.7]}
19... h6 {[%clk 0:01:42.2]} 20. Qb4 {[%clk 0:01:48.5]} 20... Re8 {[%clk
0:01:22.7]} 21. h3 {[%clk 0:01:48.5]} 21... a5 {[%clk 0:01:14.7]} 22. Qa3 {[%clk
0:01:45.3]} 22... Bf8 {[%clk 0:01:07]} 23. Qa4 {[%clk 0:01:38.7]} 23... Rd8
{[%clk 0:01:02.1]} 24. Qb5 {[%clk 0:01:36.5]} 24... Bd7 {[%clk 0:00:48.4]} 25.
Bc6 {[%clk 0:01:21.1]} 25... Bxc6 {[%clk 0:00:44.9]} 26. Qxc6 {[%clk 0:01:22]}
26... Rxd1+ {[%clk 0:00:39.9]} 27. Rxd1 {[%clk 0:01:22.9]} 27... e6 {[%clk
0:00:33.1]} 28. Qb5 {[%clk 0:01:08.4]} 28... Bc5 {[%clk 0:00:29.4]} 29. Qc6
{[%clk 0:01:05.5]} 29... Nd5 {[%clk 0:00:26.1]} 30. Qb5 {[%clk 0:00:51.8]} 30...
Nc3 {[%clk 0:00:24.7]} 0-1

[Event "Late-Titled-Tuesday-Blitz-May-07-2024"]
[Site "Chess.com"]
[Date "2024.05.07"]
[Round "2"]
[White "DanielDardha2005"]
[Black "VD_coach"]
[Result "1-0"]
[WhiteElo "2887"]
[BlackElo "2605"]
[TimeControl "180+1"]
[EndTime "14:17:00 PDT"]
[Termination "DanielDardha2005 won by resignation"]

1. d4 {[%clk 0:02:58.5]} 1... Nf6 {[%clk 0:02:57.2]} 2. Bg5 {[%clk 0:02:57.2]}
2... g6 {[%clk 0:02:52.3]} 3. Bxf6 {[%clk 0:02:56.5]} 3... exf6 {[%clk
0:02:48.4]} 4. e3 {[%clk 0:02:57.4]} 4... Bg7 {[%clk 0:02:40.8]} 5. c4 {[%clk
0:02:55]} 5... d5 {[%clk 0:02:40.9]} 6. cxd5 {[%clk 0:02:54.4]} 6... Qxd5 {[%clk
0:02:41.8]} 7. Nc3 {[%clk 0:02:54.8]} 7... Qd8 {[%clk 0:02:41.9]} 8. h4 {[%clk
0:02:48.4]} 8... h5 {[%clk 0:02:41]} 9. Nge2 {[%clk 0:02:46]} 9... O-O {[%clk
0:02:40.3]} 10. Nf4 {[%clk 0:02:45.4]} 10... Nd7 {[%clk 0:02:33.4]} 11. Bc4
{[%clk 0:02:38.8]} 11... Nb6 {[%clk 0:02:24.9]} 12. Bb3 {[%clk 0:02:34]} 12...
Bg4 {[%clk 0:02:04.3]} 13. f3 {[%clk 0:02:25.3]} 13... Bf5 {[%clk 0:02:03.4]}
14. g4 {[%clk 0:02:25.2]} 14... hxg4 {[%clk 0:01:25.6]} 15. fxg4 {[%clk
0:02:26.1]} 15... Qe7 {[%clk 0:01:18]} 16. gxf5 {[%clk 0:02:21.2]} 16... Qxe3+
{[%clk 0:01:17.9]} 17. Nce2 {[%clk 0:02:21.9]} 17... Rae8 {[%clk 0:01:07]} 18.
Qd2 {[%clk 0:02:04.9]} 18... Qe4 {[%clk 0:00:44.8]} 19. O-O-O {[%clk 0:01:58.6]}
19... Qxf5 {[%clk 0:00:32]} 20. h5 {[%clk 0:01:57.9]} 20... Bh6 {[%clk
0:00:30.8]} 21. hxg6 {[%clk 0:01:37.3]} 21... Rxe2 {[%clk 0:00:30.2]} 22. Bxf7+
{[%clk 0:01:28.7]} 22... Rxf7 {[%clk 0:00:20.1]} 23. gxf7+ {[%clk 0:01:29.6]}
23... Kxf7 {[%clk 0:00:20.2]} 24. Qxe2 {[%clk 0:01:23.9]} 24... Bxf4+ {[%clk
0:00:20.3]} 25. Rd2 {[%clk 0:01:24.2]} 25... Bxd2+ {[%clk 0:00:13.1]} 26. Qxd2
{[%clk 0:01:19.6]} 26... Nc4 {[%clk 0:00:13]} 27. Qh6 {[%clk 0:01:13.5]} 27...
Qf2 {[%clk 0:00:11]} 28. Qh7+ {[%clk 0:01:12.5]} 28... Ke6 {[%clk 0:00:10.3]}
29. Qg8+ {[%clk 0:01:12.2]} 29... Kd6 {[%clk 0:00:08.8]} 30. Qf8+ {[%clk
0:01:00.4]} 30... Kc6 {[%clk 0:00:08.5]} 31. Qc5+ {[%clk 0:01:00.3]} 31... Kd7
{[%clk 0:00:08.5]} 32. Rh7+ {[%clk 0:01:01]} 32... Ke6 {[%clk 0:00:08.6]} 33.
Qxc4+ {[%clk 0:01:01]} 33... Kf5 {[%clk 0:00:08.3]} 34. Qd5+ {[%clk 0:01:00.1]}
34... Kf4 {[%clk 0:00:06.6]} 35. Rh1 {[%clk 0:00:53.4]} 35... Qe3+ {[%clk
0:00:04]} 36. Kb1 {[%clk 0:00:53.6]} 1-0

[Event "Late-Titled-Tuesday-Blitz-May-07-2024"]
[Site "Chess.com"]
[Date "2024.05.07"]
[Round "2"]
[White "wild3000"]
[Black "cycygogne"]
[Result "1-0"]
[WhiteElo "2489"]
[BlackElo "2157"]
[TimeControl "180+1"]
[EndTime "14:17:11 PDT"]
[Termination "wild3000 won by resignation"]

1. d4 {[%clk 0:02:47.9]} 1... f5 {[%clk 0:02:58.3]} 2. e4 {[%clk 0:02:43.4]}
2... fxe4 {[%clk 0:02:57.4]} 3. f3 {[%clk 0:02:44]} 3... exf3 {[%clk 0:02:52.1]}
4. Nxf3 {[%clk 0:02:43.9]} 4... Nf6 {[%clk 0:02:52.2]} 5. Bd3 {[%clk 0:02:40.4]}
5... e6 {[%clk 0:02:45.2]} 6. O-O {[%clk 0:02:40.1]} 6... Be7 {[%clk 0:02:45.1]}
7. c4 {[%clk 0:02:37.4]} 7... O-O {[%clk 0:02:44.8]} 8. Nc3 {[%clk 0:02:37]}
8... d5 {[%clk 0:02:29.6]} 9. c5 {[%clk 0:02:35.8]} 9... Nc6 {[%clk 0:02:26]}
10. a3 {[%clk 0:02:34]} 10... a5 {[%clk 0:02:24.6]} 11. Qe2 {[%clk 0:02:27.3]}
11... Qe8 {[%clk 0:02:14.4]} 12. Nb5 {[%clk 0:02:24.4]} 12... Qd8 {[%clk
0:01:55.1]} 13. Bf4 {[%clk 0:02:22.8]} 13... e5 {[%clk 0:01:50.1]} 14. Nxe5
{[%clk 0:02:18.3]} 14... Nxd4 {[%clk 0:01:35.8]} 15. Nxd4 {[%clk 0:02:14.6]}
15... Bxc5 {[%clk 0:01:35.6]} 16. Nf3 {[%clk 0:02:00]} 16... Bg4 {[%clk
0:01:29.1]} 17. Be3 {[%clk 0:01:49.1]} 17... Re8 {[%clk 0:01:25.8]} 18. Qf2
{[%clk 0:01:49.1]} 18... Ne4 {[%clk 0:01:18.9]} 19. Bxe4 {[%clk 0:01:45.8]}
19... dxe4 {[%clk 0:01:19.8]} 20. Rac1 {[%clk 0:01:34.4]} 20... b6 {[%clk
0:01:10.9]} 21. b4 {[%clk 0:01:19.7]} 21... axb4 {[%clk 0:01:08.2]} 22. axb4
{[%clk 0:01:20.6]} 22... exf3 {[%clk 0:00:59.4]} 23. bxc5 {[%clk 0:01:19.1]}
23... fxg2 {[%clk 0:00:55.8]} 24. Qxg2 {[%clk 0:01:00.9]} 24... Qh4 {[%clk
0:00:47]} 25. Bf2 {[%clk 0:00:57.8]} 25... Qh5 {[%clk 0:00:42.7]} 26. cxb6
{[%clk 0:00:53.1]} 26... Bh3 {[%clk 0:00:33.4]} 27. Qg3 {[%clk 0:00:51.1]} 27...
Bxf1 {[%clk 0:00:25.5]} 28. b7 {[%clk 0:00:43.9]} 28... Ra2 {[%clk 0:00:22.8]}
29. Qb3+ {[%clk 0:00:41.9]} 29... Qf7 {[%clk 0:00:21.1]} 30. Qxf7+ {[%clk
0:00:41.1]} 30... Kxf7 {[%clk 0:00:22]} 31. Rxc7+ {[%clk 0:00:39.4]} 31... Kf8
{[%clk 0:00:19.9]} 32. Kxf1 {[%clk 0:00:38.4]} 32... Ra1+ {[%clk 0:00:17.8]} 33.
Kg2 {[%clk 0:00:38.1]} 33... Rb1 {[%clk 0:00:18.1]} 34. Bg3 {[%clk 0:00:29.4]}
34... Rb8 {[%clk 0:00:14]} 35. Rc8+ {[%clk 0:00:28.2]} 1-0

[Event "Late-Titled-Tuesday-Blitz-May-07-2024"]
[Site "Chess.com"]
[Date "2024.05.07"]
[Round "2"]
[White "LaStreetCmaMaison"]
[Black "Gareth-Bale11"]
[Result "0-1"]
[WhiteElo "2613"]
[BlackElo "2895"]
[TimeControl "180+1"]
[EndTime "14:17:16 PDT"]
[Termination "Gareth-Bale11 won by resignation"]

1. b3 {[%clk 0:02:59.3]} 1... d5 {[%clk 0:02:53.2]} 2. Bb2 {[%clk 0:02:59.5]}
2... Nf6 {[%clk 0:02:53.8]} 3. Nf3 {[%clk 0:02:59.9]} 3... Bf5 {[%clk
0:02:54.3]} 4. d3 {[%clk 0:02:59.4]} 4... e6 {[%clk 0:02:54.1]} 5. Nh4 {[%clk
0:02:50.5]} 5... Bg4 {[%clk 0:02:51.6]} 6. g3 {[%clk 0:02:49.5]} 6... Be7 {[%clk
0:02:47.3]} 7. Bg2 {[%clk 0:02:46.3]} 7... O-O {[%clk 0:02:47.6]} 8. Nd2 {[%clk
0:02:44.7]} 8... a5 {[%clk 0:02:47.1]} 9. Nhf3 {[%clk 0:02:08.8]} 9... a4 {[%clk
0:02:37.6]} 10. bxa4 {[%clk 0:01:59.2]} 10... Rxa4 {[%clk 0:02:28.7]} 11. c4
{[%clk 0:01:57.8]} 11... Ra8 {[%clk 0:02:28.7]} 12. Ne5 {[%clk 0:01:57.8]} 12...
Bh5 {[%clk 0:02:22.7]} 13. cxd5 {[%clk 0:01:45.4]} 13... exd5 {[%clk 0:02:21.2]}
14. O-O {[%clk 0:01:35.7]} 14... c6 {[%clk 0:02:16.7]} 15. a4 {[%clk 0:01:26.9]}
15... Nbd7 {[%clk 0:02:15.2]} 16. Qb3 {[%clk 0:01:26.2]} 16... Nc5 {[%clk
0:02:10.4]} 17. Qd1 {[%clk 0:01:21.6]} 17... Re8 {[%clk 0:02:05.8]} 18. h3
{[%clk 0:01:17.3]} 18... Bd6 {[%clk 0:02:04.2]} 19. f4 {[%clk 0:01:17.5]} 19...
Bxe5 {[%clk 0:02:00.1]} 20. fxe5 {[%clk 0:01:16.1]} 20... Nfd7 {[%clk
0:01:59.6]} 21. d4 {[%clk 0:00:56]} 21... Ne6 {[%clk 0:01:58.3]} 22. Rf2 {[%clk
0:00:42.9]} 22... Qb6 {[%clk 0:01:50.6]} 23. Nb3 {[%clk 0:00:43.1]} 23... Bg6
{[%clk 0:01:40.3]} 24. a5 {[%clk 0:00:41.3]} 24... Qc7 {[%clk 0:01:33.8]} 25. e3
{[%clk 0:00:41]} 25... b6 {[%clk 0:01:32.3]} 26. Bc3 {[%clk 0:00:35.2]} 26...
bxa5 {[%clk 0:01:31.5]} 27. Nxa5 {[%clk 0:00:34.8]} 27... Ng5 {[%clk 0:01:25.7]}
28. Rf4 {[%clk 0:00:16.9]} 28... Ne4 {[%clk 0:01:22.9]} 29. Be1 {[%clk 0:00:17]}
29... c5 {[%clk 0:01:20.4]} 30. h4 {[%clk 0:00:16.3]} 30... h6 {[%clk
0:01:18.5]} 31. h5 {[%clk 0:00:15.8]} 31... Bh7 {[%clk 0:01:18.9]} 32. Qf3
{[%clk 0:00:08.2]} 32... Nf8 {[%clk 0:01:17.7]} 33. Bh3 {[%clk 0:00:04]} 33...
Ng5 {[%clk 0:01:16.3]} 34. Qg2 {[%clk 0:00:04.7]} 34... Be4 {[%clk 0:01:15.1]}
35. Qf1 {[%clk 0:00:04.1]} 35... Nxh3+ {[%clk 0:01:15]} 36. Qxh3 {[%clk
0:00:05]} 36... Ne6 {[%clk 0:01:15.8]} 37. Qg4 {[%clk 0:00:01.8]} 37... cxd4
{[%clk 0:01:14.1]} 38. exd4 {[%clk 0:00:01.5]} 38... Nxd4 {[%clk 0:01:08.9]} 39.
Bf2 {[%clk 0:00:01.6]} 39... Ne6 {[%clk 0:01:07.8]} 40. Be1 {[%clk 0:00:01.2]}
40... Qxe5 {[%clk 0:01:07]} 41. Ra2 {[%clk 0:00:00.9]} 41... Nxf4 {[%clk
0:01:07]} 42. gxf4 {[%clk 0:00:01.8]} 42... Qf6 {[%clk 0:01:04.3]} 43. Rf2
{[%clk 0:00:01.8]} 43... Rab8 {[%clk 0:01:02.9]} 44. Qg3 {[%clk 0:00:01.6]}
44... Rb1 {[%clk 0:01:02.7]} 45. Rc2 {[%clk 0:00:01.2]} 45... Bxc2 {[%clk
0:01:01.1]} 0-1

[Event "Late-Titled-Tuesday-Blitz-May-07-2024"]
[Site "Chess.com"]
[Date "2024.05.07"]
[Round "2"]
[White "almaguerjm"]
[Black "oskariot"]
[Result "0-1"]
[WhiteElo "2408"]
[BlackElo "2757"]
[TimeControl "180+1"]
[EndTime "14:17:20 PDT"]
[Termination "oskariot won by resignation"]

1. e4 {[%clk 0:02:53.8]} 1... c5 {[%clk 0:02:59.7]} 2. Nf3 {[%clk 0:02:53.3]}
2... e6 {[%clk 0:02:59.3]} 3. d3 {[%clk 0:02:48.4]} 3... Nc6 {[%clk 0:02:58.4]}
4. g3 {[%clk 0:02:47.8]} 4... d5 {[%clk 0:02:58.6]} 5. Nbd2 {[%clk 0:02:47.1]}
5... Bd6 {[%clk 0:02:57.9]} 6. Bg2 {[%clk 0:02:43.8]} 6... Nge7 {[%clk
0:02:57.4]} 7. O-O {[%clk 0:02:43.9]} 7... O-O {[%clk 0:02:57]} 8. a4 {[%clk
0:02:43.9]} 8... f6 {[%clk 0:02:56.5]} 9. Re1 {[%clk 0:02:40.8]} 9... Qc7 {[%clk
0:02:54.7]} 10. c3 {[%clk 0:02:36.6]} 10... Bd7 {[%clk 0:02:54.6]} 11. Qb3
{[%clk 0:02:30.1]} 11... Kh8 {[%clk 0:02:52.7]} 12. Nf1 {[%clk 0:02:28.4]} 12...
c4 {[%clk 0:02:44.4]} 13. dxc4 {[%clk 0:02:27]} 13... Na5 {[%clk 0:02:43.4]} 14.
Qd1 {[%clk 0:02:25]} 14... dxc4 {[%clk 0:02:42.2]} 15. e5 {[%clk 0:02:23.8]}
15... fxe5 {[%clk 0:02:36.9]} 16. Ng5 {[%clk 0:02:20]} 16... h6 {[%clk
0:02:18.7]} 17. Qh5 {[%clk 0:02:09.9]} 17... Be8 {[%clk 0:02:17.7]} 18. Qh3
{[%clk 0:02:09.3]} 18... Rf6 {[%clk 0:01:53.8]} 19. Ne4 {[%clk 0:01:53.7]} 19...
Rg6 {[%clk 0:01:47.2]} 20. Be3 {[%clk 0:01:47.3]} 20... Nd5 {[%clk 0:01:36.4]}
21. Rad1 {[%clk 0:01:36.2]} 21... Bc6 {[%clk 0:01:33.9]} 22. Nxd6 {[%clk
0:01:31.1]} 22... Qxd6 {[%clk 0:01:33.1]} 23. Be4 {[%clk 0:01:31.3]} 23... Rf6
{[%clk 0:01:32.4]} 24. Bg5 {[%clk 0:01:29.9]} 24... Raf8 {[%clk 0:01:27.7]} 25.
Bxf6 {[%clk 0:01:28.4]} 25... Rxf6 {[%clk 0:01:28.6]} 26. Ne3 {[%clk 0:01:27.8]}
26... Qc5 {[%clk 0:01:25.4]} 27. Ng4 {[%clk 0:01:18.7]} 27... Rf7 {[%clk
0:01:23.1]} 28. Rd2 {[%clk 0:01:12.9]} 28... Nb3 {[%clk 0:01:22.4]} 29. Rde2
{[%clk 0:01:10]} 29... Nf6 {[%clk 0:01:13.9]} 30. Bxc6 {[%clk 0:00:56.6]} 30...
Nxg4 {[%clk 0:01:10.8]} 31. Qxg4 {[%clk 0:00:56.7]} 31... Qxc6 {[%clk
0:01:11.2]} 32. Rd1 {[%clk 0:00:47.3]} 32... Nc5 {[%clk 0:01:06.7]} 33. Rd8+
{[%clk 0:00:44]} 33... Kh7 {[%clk 0:01:06.9]} 34. Rxe5 {[%clk 0:00:42.1]} 34...
Qc7 {[%clk 0:01:00.9]} 35. Qxc4 {[%clk 0:00:33.1]} 35... Qxe5 {[%clk 0:00:55.2]}
36. Rd1 {[%clk 0:00:25.3]} 36... Qf5 {[%clk 0:00:53.8]} 37. f3 {[%clk
0:00:21.1]} 37... Qxf3 {[%clk 0:00:50.2]} 38. Ra1 {[%clk 0:00:05.3]} 38... Ne4
{[%clk 0:00:47]} 39. Qd4 {[%clk 0:00:05.2]} 39... Ng5 {[%clk 0:00:44.9]} 0-1

[Event "Late-Titled-Tuesday-Blitz-May-07-2024"]
[Site "Chess.com"]
[Date "2024.05.07"]
[Round "2"]
[White "MrKGG1"]
[Black "Axf7"]
[Result "1-0"]
[WhiteElo "2704"]
[BlackElo "2031"]
[TimeControl "180+1"]
[EndTime "14:17:20 PDT"]
[Termination "MrKGG1 won by resignation"]

1. e4 {[%clk 0:03:00.9]} 1... c5 {[%clk 0:02:59.9]} 2. Nc3 {[%clk 0:03:00.5]}
2... Nc6 {[%clk 0:02:59.7]} 3. g3 {[%clk 0:03:00.6]} 3... g6 {[%clk 0:03:00]} 4.
Bg2 {[%clk 0:03:00.8]} 4... Bg7 {[%clk 0:03:00.4]} 5. d3 {[%clk 0:03:01.7]} 5...
d6 {[%clk 0:02:59.5]} 6. Be3 {[%clk 0:03:01.7]} 6... e6 {[%clk 0:02:58.9]} 7.
Qd2 {[%clk 0:03:01.9]} 7... h5 {[%clk 0:02:58.1]} 8. h3 {[%clk 0:03:00.9]} 8...
Nge7 {[%clk 0:02:58.2]} 9. Nge2 {[%clk 0:03:00.9]} 9... b6 {[%clk 0:02:58.4]}
10. O-O {[%clk 0:03:00.2]} 10... Bb7 {[%clk 0:02:58]} 11. d4 {[%clk 0:02:52.5]}
11... O-O {[%clk 0:02:55.7]} 12. Rad1 {[%clk 0:02:49.2]} 12... a6 {[%clk
0:02:47.1]} 13. f4 {[%clk 0:02:15.3]} 13... Qc7 {[%clk 0:02:45.5]} 14. d5 {[%clk
0:02:09.9]} 14... exd5 {[%clk 0:02:28.5]} 15. exd5 {[%clk 0:02:09.8]} 15... Nd4
{[%clk 0:01:58]} 16. Nxd4 {[%clk 0:01:59.8]} 16... cxd4 {[%clk 0:01:58.1]} 17.
Bxd4 {[%clk 0:02:00.7]} 17... Bxd4+ {[%clk 0:01:51]} 18. Qxd4 {[%clk 0:02:01.6]}
18... Nf5 {[%clk 0:01:43.8]} 19. Qf2 {[%clk 0:02:00.8]} 19... b5 {[%clk
0:01:42.9]} 20. g4 {[%clk 0:01:42.3]} 20... hxg4 {[%clk 0:01:38.7]} 21. hxg4
{[%clk 0:01:43.2]} 21... Ng7 {[%clk 0:01:09.6]} 22. g5 {[%clk 0:01:32.9]} 22...
Qc5 {[%clk 0:00:59.1]} 23. Qxc5 {[%clk 0:01:18.4]} 23... dxc5 {[%clk 0:00:58.8]}
24. Ne4 {[%clk 0:01:19.3]} 24... Nf5 {[%clk 0:00:54.8]} 25. Nxc5 {[%clk
0:01:12.6]} 25... Ra7 {[%clk 0:00:34.8]} 26. Rfe1 {[%clk 0:01:08.2]} 26... Rd8
{[%clk 0:00:31.8]} 27. b3 {[%clk 0:00:27.9]} 27... Bc8 {[%clk 0:00:31.2]} 28.
Ne4 {[%clk 0:00:25.8]} 28... Kg7 {[%clk 0:00:29.9]} 29. c4 {[%clk 0:00:25]}
29... bxc4 {[%clk 0:00:29.9]} 30. bxc4 {[%clk 0:00:25.9]} 30... a5 {[%clk
0:00:28.8]} 31. c5 {[%clk 0:00:24.7]} 31... Ba6 {[%clk 0:00:27.2]} 32. c6 {[%clk
0:00:20.5]} 32... Nd6 {[%clk 0:00:25.2]} 33. Nxd6 {[%clk 0:00:20.3]} 33... Rxd6
{[%clk 0:00:25.5]} 34. Rc1 {[%clk 0:00:20.5]} 34... Rc7 {[%clk 0:00:25.2]} 35.
Rc5 {[%clk 0:00:19.6]} 35... Bc8 {[%clk 0:00:19.7]} 36. Rxa5 {[%clk 0:00:19.4]}
36... Bf5 {[%clk 0:00:19.9]} 37. Rc5 {[%clk 0:00:18.2]} 1-0

[Event "Late-Titled-Tuesday-Blitz-May-07-2024"]
[Site "Chess.com"]
[Date "2024.05.07"]
[Round "2"]
[White "ChessWarrior7197"]
[Black "Caterpiller35"]
[Result "1-0"]
[WhiteElo "3133"]
[BlackElo "2443"]
[TimeControl "180+1"]
[EndTime "14:17:21 PDT"]
[Termination "ChessWarrior7197 won by resignation"]

1. e4 {[%clk 0:03:00.9]} 1... c6 {[%clk 0:02:59.9]} 2. Nf3 {[%clk 0:02:59.9]}
2... d5 {[%clk 0:02:59.9]} 3. exd5 {[%clk 0:03:00.7]} 3... cxd5 {[%clk
0:03:00.1]} 4. d4 {[%clk 0:03:01.6]} 4... Nc6 {[%clk 0:03:00.2]} 5. c3 {[%clk
0:03:02.1]} 5... Bf5 {[%clk 0:03:00.1]} 6. Qb3 {[%clk 0:03:01]} 6... Qd7 {[%clk
0:02:51.2]} 7. Bb5 {[%clk 0:03:01.1]} 7... f6 {[%clk 0:02:50.8]} 8. O-O {[%clk
0:03:01.2]} 8... e6 {[%clk 0:02:48.7]} 9. Re1 {[%clk 0:02:42.4]} 9... Bd6 {[%clk
0:02:45.8]} 10. c4 {[%clk 0:02:41]} 10... O-O-O {[%clk 0:02:38.2]} 11. cxd5
{[%clk 0:02:40.5]} 11... exd5 {[%clk 0:02:38.8]} 12. Nc3 {[%clk 0:02:41.2]}
12... Be4 {[%clk 0:02:34.5]} 13. Nxe4 {[%clk 0:02:41]} 13... dxe4 {[%clk
0:02:35.4]} 14. Rxe4 {[%clk 0:02:41.8]} 14... Nge7 {[%clk 0:02:30.3]} 15. Bd2
{[%clk 0:02:42.1]} 15... Qf5 {[%clk 0:02:28.4]} 16. Rae1 {[%clk 0:02:42]} 16...
g5 {[%clk 0:02:26.3]} 17. Bc4 {[%clk 0:02:39.3]} 17... Qg6 {[%clk 0:02:20.9]}
18. d5 {[%clk 0:02:37.2]} 18... Ne5 {[%clk 0:02:18.6]} 19. Nxe5 {[%clk
0:02:37.9]} 19... Bxe5 {[%clk 0:02:16.7]} 20. Qa3 {[%clk 0:02:38.4]} 20... Nxd5
{[%clk 0:01:55]} 21. Qxa7 {[%clk 0:02:38.5]} 21... Nf4 {[%clk 0:01:42.7]} 22.
Bxf4 {[%clk 0:02:38.1]} 22... gxf4 {[%clk 0:01:41.2]} 23. Be6+ {[%clk
0:02:37.9]} 23... Kc7 {[%clk 0:01:39.9]} 24. Rc4+ {[%clk 0:02:34.7]} 24... Kd6
{[%clk 0:01:39.2]} 25. Qb6+ {[%clk 0:02:34.1]} 25... Ke7 {[%clk 0:01:37.8]} 26.
Bh3 {[%clk 0:02:28]} 26... Qd3 {[%clk 0:01:25.9]} 27. Rc7+ {[%clk 0:02:25.7]}
27... Kf8 {[%clk 0:01:25]} 28. Qxb7 {[%clk 0:02:03.2]} 28... Bxc7 {[%clk
0:01:13.2]} 29. Qxc7 {[%clk 0:01:55.7]} 29... Qd6 {[%clk 0:01:12.6]} 30. Qb7
{[%clk 0:01:54.3]} 30... Rb8 {[%clk 0:01:03.9]} 31. Qa7 {[%clk 0:01:51.6]} 31...
Rxb2 {[%clk 0:00:57.6]} 32. Bf5 {[%clk 0:01:48]} 32... Re2 {[%clk 0:00:46.4]}
33. Rc1 {[%clk 0:01:42.3]} 33... Re7 {[%clk 0:00:45.8]} 34. Qa8+ {[%clk
0:01:20.9]} 34... Kg7 {[%clk 0:00:45.7]} 35. Qf3 {[%clk 0:01:21.8]} 35... Rd8
{[%clk 0:00:41.3]} 36. h3 {[%clk 0:01:21.5]} 36... Kh8 {[%clk 0:00:40.4]} 37. a4
{[%clk 0:01:19.5]} 37... Qe5 {[%clk 0:00:36.1]} 38. Bb1 {[%clk 0:01:04.3]} 38...
Ra7 {[%clk 0:00:34.2]} 39. Rd1 {[%clk 0:00:53.8]} 39... Rda8 {[%clk 0:00:16.8]}
40. Bc2 {[%clk 0:00:50.7]} 40... Rc8 {[%clk 0:00:16]} 41. Bb3 {[%clk 0:00:49.6]}
41... Rc3 {[%clk 0:00:15.9]} 42. Rd8+ {[%clk 0:00:48.6]} 42... Kg7 {[%clk
0:00:16.1]} 43. Qg4+ {[%clk 0:00:47.4]} 43... Qg5 {[%clk 0:00:16.4]} 44. Rg8+
{[%clk 0:00:47.4]} 1-0